Workbook

Sheet Wedding Budget
B2: wedding budget summary
B3: Wedding Date
B4: =TODAY()+365 -> 2024-03-05
B6: CATEGORY | C6: ESTIMATED | D6: ACTUAL | E6: OVER/UNDER | F6: DONE
B7: Apparel | C7: =Apparel_Total_est -> 9,490.00 | D7: =Apparel_Total_act -> 9,770.00 | E7: =BudgetSummary[[#This Row],[ESTIMATED]]-BudgetSummary[[#This Row],[ACTUAL]] -> -280.00 | F7: =Apparel_done -> Yes
B8: Reception | C8: =Reception_Total_est -> 1,050.00 | D8: =Reception_Total_act -> 928.00 | E8: =BudgetSummary[[#This Row],[ESTIMATED]]-BudgetSummary[[#This Row],[ACTUAL]] -> 122.00 | F8: =reception_done -> Yes
B9: Music | C9: =Music_Entertainment_Total_est -> 600.00 | D9: =Music_Entertainment_Total_act -> 500.00 | E9: =BudgetSummary[[#This Row],[ESTIMATED]]-BudgetSummary[[#This Row],[ACTUAL]] -> 100.00 | F9: =Music_Done -> No
B10: Printing | C10: =Printing__Stationery_Total_est -> 935.00 | D10: =Printing__Stationery_Total_act -> 870.00 | E10: =BudgetSummary[[#This Row],[ESTIMATED]]-BudgetSummary[[#This Row],[ACTUAL]] -> 65.00 | F10: =Printing_Done -> No
B11: Photography | C11: =Photography_Total_est -> 1,625.00 | D11: =Photography_Total_act -> 1,575.00 | E11: =BudgetSummary[[#This Row],[ESTIMATED]]-BudgetSummary[[#This Row],[ACTUAL]] -> 50.00 | F11: =Photography_Done -> No
B12: Decorations | C12: =Decorations_Total_est -> 700.00 | D12: =Decorations_Total_act -> 720.00 | E12: =BudgetSummary[[#This Row],[ESTIMATED]]-BudgetSummary[[#This Row],[ACTUAL]] -> -20.00 | F12: =Deco_Done -> Yes
B13: Flowers | C13: =Flowers_Total_est -> 900.00 | D13: =Flowers_Total_act -> 850.00 | E13: =BudgetSummary[[#This Row],[ESTIMATED]]-BudgetSummary[[#This Row],[ACTUAL]] -> 50.00 | F13: =Flowers_Done -> No
B14: Gifts | C14: =Gifts_Total_est -> 1,345.00 | D14: =Gifts_Total_act -> 1,075.00 | E14: =BudgetSummary[[#This Row],[ESTIMATED]]-BudgetSummary[[#This Row],[ACTUAL]] -> 270.00 | F14: =Gifts_Done -> No
B15: Travel | C15: =Travel_Transportation_Total_est -> 100.00 | D15: =Travel_Transportation_Total_act -> 165.00 | E15: =BudgetSummary[[#This Row],[ESTIMATED]]-BudgetSummary[[#This Row],[ACTUAL]] -> -65.00 | F15: =Travel_Done -> Yes
B16: Other | C16: =Other_Expenses_Total_est -> 885.00 | D16: =Other_Expenses_Total_act -> 1,021.00 | E16: =BudgetSummary[[#This Row],[ESTIMATED]]-BudgetSummary[[#This Row],[ACTUAL]] -> -136.00 | F16: =Other_Done -> No
B17: Total Expenses | C17: =SUBTOTAL(109,BudgetSummary[ESTIMATED]) -> 17,630.00 | D17: =SUBTOTAL(109,BudgetSummary[ACTUAL]) -> 17,474.00 | E17: =SUBTOTAL(109,BudgetSummary[OVER/UNDER]) -> 156.00

Sheet Expenses
B2: expenses
B4: APPAREL
B6: CATEGORY | C6: ESTIMATED | D6: ACTUAL | E6: OVER/UNDER
B7: Engagement ring(s) | C7: 1,500.00 | D7: 1,500.00 | E7: =Expenses!$C7-Expenses!$D7 -> 0.00
B8: Spouse-to-be 1 ring | C8: 2,000.00 | D8: 2,300.00 | E8: =Expenses!$C8-Expenses!$D8 -> (300.00)
B9: Spouse-to-be 1 gown/tuxedo | C9: 3,000.00 | D9: 2,750.00 | E9: =Expenses!$C9-Expenses!$D9 -> 250.00
B10: Spouse-to-be 1 veil/headpiece | C10: 500.00 | D10: 500.00 | E10: =Expenses!$C10-Expenses!$D10 -> 0.00
B11: Spouse-to-be 1 shoes | C11: 350.00 | D11: 300.00 | E11: =Expenses!$C11-Expenses!$D11 -> 50.00
B12: Spouse-to-be 1 jewelry | C12: 400.00 | D12: 550.00 | E12: =Expenses!$C12-Expenses!$D12 -> (150.00)
B13: Spouse-to-be 1 hosiery | C13: 20.00 | D13: 20.00 | E13: =Expenses!$C13-Expenses!$D13 -> 0.00
B14: Spouse-to-be 2 ring | C14: 300.00 | D14: 250.00 | E14: =Expenses!$C14-Expenses!$D14 -> 50.00
B15: Spouse-to-be 2 gown/tuxedo | C15: 300.00 | D15: 350.00 | E15: =Expenses!$C15-Expenses!$D15 -> (50.00)
B16: Spouse-to-be 2 veil/headpiece | C16: 500.00 | D16: 500.00 | E16: =Expenses!$C16-Expenses!$D16 -> 0.00
B17: Spouse-to-be 2 shoes | C17: 200.00 | D17: 175.00 | E17: =Expenses!$C17-Expenses!$D17 -> 25.00
B18: Spouse-to-be 2 jewelry | C18: 400.00 | D18: 550.00 | E18: =Expenses!$C18-Expenses!$D18 -> (150.00)
B19: Spouse-to-be 2 hosiery | C19: 20.00 | D19: 25.00 | E19: =Expenses!$C19-Expenses!$D19 -> (5.00)
B20: Apparel Total | C20: =SUBTOTAL(109,Apparel[ESTIMATED]) -> 9,490.00 | D20: =SUBTOTAL(109,Apparel[ACTUAL]) -> 9,770.00 | E20: =SUBTOTAL(109,Apparel[OVER/UNDER]) -> (280.00)
C22: ="Are all expenses in "&B4&" category done?" -> Are all expenses in APPAREL category done? | E22: Yes
B24: RECEPTION*
B26: CATEGORY | C26: ESTIMATED | D26: ACTUAL | E26: OVER/UNDER
B27: Room/hall fees | C27: 200.00 | D27: 150.00 | E27: =Expenses!$C27-Expenses!$D27 -> 50.00
B28: Tables and chairs | C28: 100.00 | D28: 50.00 | E28: =Expenses!$C28-Expenses!$D28 -> 50.00
B29: Food | C29: 0.00 | D29: 0.00 | E29: =Expenses!$C29-Expenses!$D29 -> 0.00
B30: Drinks | C30: 0.00 | D30: 0.00 | E30: =Expenses!$C30-Expenses!$D30 -> 0.00
B31: Linens | C31: 0.00 | D31: 0.00 | E31: =Expenses!$C31-Expenses!$D31 -> 0.00
B32: Cake | C32: 700.00 | D32: 700.00 | E32: =Expenses!$C32-Expenses!$D32 -> 0.00
B33: Favors | C33: 50.00 | D33: 28.00 | E33: =Expenses!$C33-Expenses!$D33 -> 22.00
B34: Staff and gratuities | C34: 0.00 | D34: 0.00 | E34: =Expenses!$C34-Expenses!$D34 -> 0.00
B35: Reception Total | C35: =SUBTOTAL(109,Reception[ESTIMATED]) -> 1,050.00 | D35: =SUBTOTAL(109,Reception[ACTUAL]) -> 928.00 | E35: =SUBTOTAL(109,Reception[OVER/UNDER]) -> 122.00
B36: * Excludes entertainment and decorations
C38: ="Are all expenses in "&B24&" category done?" -> Are all expenses in RECEPTION* category done? | E38: Yes
B40: MUSIC/ENTERTAINMENT
B42: CATEGORY | C42: ESTIMATED | D42: ACTUAL | E42: OVER/UNDER
B43: Musicians for ceremony | C43: 400.00 | D43: 400.00 | E43: =Expenses!$C43-Expenses!$D43 -> 0.00
B44: Band/DJ for reception | C44: 200.00 | D44: 100.00 | E44: =Expenses!$C44-Expenses!$D44 -> 100.00
B45: Music/Entertainment Total | C45: =SUBTOTAL(109,Music[ESTIMATED]) -> 600.00 | D45: =SUBTOTAL(109,Music[ACTUAL]) -> 500.00 | E45: =SUBTOTAL(109,Music[OVER/UNDER]) -> 100.00
C47: ="Are all expenses in "&B40&" category done?" -> Are all expenses in MUSIC/ENTERTAINMENT category done? | E47: No
B49: PRINTING/STATIONERY
B51: CATEGORY | C51: ESTIMATED | D51: ACTUAL | E51: OVER/UNDER
B52: Invitations | C52: 500.00 | D52: 450.00 | E52: =Expenses!$C52-Expenses!$D52 -> 50.00
B53: Announcements | C53: 200.00 | D53: 175.00 | E53: =Expenses!$C53-Expenses!$D53 -> 25.00
B54: Thank-You cards | C54: 100.00 | D54: 100.00 | E54: =Expenses!$C54-Expenses!$D54 -> 0.00
B55: Personal stationery | C55: 0.00 | D55: 0.00 | E55: =Expenses!$C55-Expenses!$D55 -> 0.00
B56: Guest book | C56: 25.00 | D56: 25.00 | E56: =Expenses!$C56-Expenses!$D56 -> 0.00
B57: Programs | C57: 75.00 | D57: 80.00 | E57: =Expenses!$C57-Expenses!$D57 -> (5.00)
B58: Reception napkins | C58: 35.00 | D58: 40.00 | E58: =Expenses!$C58-Expenses!$D58 -> (5.00)
B59: Matchbooks | C59: 0.00 | D59: 0.00 | E59: =Expenses!$C59-Expenses!$D59 -> 0.00
B60: Calligraphy | C60: 0.00 | D60: 0.00 | E60: =Expenses!$C60-Expenses!$D60 -> 0.00
B61: Printing /Stationery Total | C61: =SUBTOTAL(109,Printing[ESTIMATED]) -> 935.00 | D61: =SUBTOTAL(109,Printing[ACTUAL]) -> 870.00 | E61: =SUBTOTAL(109,Printing[OVER/UNDER]) -> 65.00
C63: ="Are all expenses in "&B49&" category done?" -> Are all expenses in PRINTING/STATIONERY category done? | E63: No
B65: PHOTOGRAPHY
B67: CATEGORY | C67: ESTIMATED | D67: ACTUAL | E67: OVER/UNDER
B68: Formals | C68: 1,300.00 | D68: 1,300.00 | E68: =Expenses!$C68-Expenses!$D68 -> 0.00
B69: Extra prints | C69: 25.00 | D69: 25.00 | E69: =Expenses!$C69-Expenses!$D69 -> 0.00
B70: Photo albums | C70: 100.00 | D70: 100.00 | E70: =Expenses!$C70-Expenses!$D70 -> 0.00
B71: Videography | C71: 200.00 | D71: 150.00 | E71: =Expenses!$C71-Expenses!$D71 -> 50.00
B72: Photography Total | C72: =SUBTOTAL(109,Photography[ESTIMATED]) -> 1,625.00 | D72: =SUBTOTAL(109,Photography[ACTUAL]) -> 1,575.00 | E72: =SUBTOTAL(109,Photography[OVER/UNDER]) -> 50.00
C74: ="Are all expenses in "&B65&" category done?" -> Are all expenses in PHOTOGRAPHY category done? | E74: No
B76: DECORATIONS*
B78: CATEGORY | C78: ESTIMATED | D78: ACTUAL | E78: OVER/UNDER
B79: Bows for seating | C79: 0.00 | D79: 0.00 | E79: =Expenses!$C79-Expenses!$D79 -> 0.00
B80: Centerpieces | C80: 300.00 | D80: 320.00 | E80: =Expenses!$C80-Expenses!$D80 -> (20.00)
B81: Candles | C81: 100.00 | D81: 75.00 | E81: =Expenses!$C81-Expenses!$D81 -> 25.00
B82: Lighting | C82: 100.00 | D82: 75.00 | E82: =Expenses!$C82-Expenses!$D82 -> 25.00
B83: Balloons | C83: 200.00 | D83: 250.00 | E83: =Expenses!$C83-Expenses!$D83 -> (50.00)
B84: Decorations Total | C84: =SUBTOTAL(109,Decorations[ESTIMATED]) -> 700.00 | D84: =SUBTOTAL(109,Decorations[ACTUAL]) -> 720.00 | E84: =SUBTOTAL(109,Decorations[OVER/UNDER]) -> (20.00)
B85: *Excludes flowers
C87: ="Are all expenses in "&B76&" category done?" -> Are all expenses in DECORATIONS* category done? | E87: Yes
B89: FLOWERS
B91: CATEGORY | C91: ESTIMATED | D91: ACTUAL | E91: OVER/UNDER
B92: Bouquets | C92: 500.00 | D92: 450.00 | E92: =Expenses!$C92-Expenses!$D92 -> 50.00
B93: Boutonnières | C93: 0.00 | D93: 0.00 | E93: =Expenses!$C93-Expenses!$D93 -> 0.00
B94: Corsages | C94: 0.00 | D94: 0.00 | E94: =Expenses!$C94-Expenses!$D94 -> 0.00
B95: Ceremony | C95: 400.00 | D95: 400.00 | E95: =Expenses!$C95-Expenses!$D95 -> 0.00
B96: Reception | C96: 0.00 | D96: 0.00 | E96: =Expenses!$C96-Expenses!$D96 -> 0.00
B97: Flowers Total | C97: =SUBTOTAL(109,Flowers[ESTIMATED]) -> 900.00 | D97: =SUBTOTAL(109,Flowers[ACTUAL]) -> 850.00 | E97: =SUBTOTAL(109,Flowers[OVER/UNDER]) -> 50.00
C99: ="Are all expenses in "&B89&" category done?" -> Are all expenses in FLOWERS category done? | E99: No
B101: GIFTS
B103: CATEGORY | C103: ESTIMATED | D103: ACTUAL | E103: OVER/UNDER
B104: Attendants | C104: 1,000.00 | D104: 400.00 | E104: =Expenses!$C104-Expenses!$D104 -> 600.00
B105: Spouse-to-be 1 | C105: 150.00 | D105: 200.00 | E105: =Expenses!$C105-Expenses!$D105 -> (50.00)
B106: Spouse-to-be 2 | C106: 150.00 | D106: 200.00 | E106: =Expenses!$C106-Expenses!$D106 -> (50.00)
B107: Parents | C107: 25.00 | D107: 25.00 | E107: =Expenses!$C107-Expenses!$D107 -> 0.00
B108: Readers/other participants | C108: 20.00 | D108: 250.00 | E108: =Expenses!$C108-Expenses!$D108 -> (230.00)
B109: Gifts Total | C109: =SUBTOTAL(109,Gifts[ESTIMATED]) -> 1,345.00 | D109: =SUBTOTAL(109,Gifts[ACTUAL]) -> 1,075.00 | E109: =SUBTOTAL(109,Gifts[OVER/UNDER]) -> 270.00
C111: ="Are all expenses in "&B101&" category done?" -> Are all expenses in GIFTS category done? | E111: No
B113: TRAVEL/TRANSPORTATION
B115: CATEGORY | C115: ESTIMATED | D115: ACTUAL | E115: OVER/UNDER
B116: Limousines/trolleys | C116: 100.00 | D116: 125.00 | E116: =Expenses!$C116-Expenses!$D116 -> (25.00)
B117: Parking | C117: 0.00 | D117: 40.00 | E117: =Expenses!$C117-Expenses!$D117 -> (40.00)
B118: Taxis | C118: 0.00 | D118: 0.00 | E118: =Expenses!$C118-Expenses!$D118 -> 0.00
B119: Travel/Transportation Total | C119: =SUBTOTAL(109,Travel[ESTIMATED]) -> 100.00 | D119: =SUBTOTAL(109,Travel[ACTUAL]) -> 165.00 | E119: =SUBTOTAL(109,Travel[OVER/UNDER]) -> (65.00)
C121: ="Are all expenses in "&B113&" category done?" -> Are all expenses in TRAVEL/TRANSPORTATION category done? | E121: Yes
B123: OTHER EXPENSES
B125: CATEGORY | C125: ESTIMATED | D125: ACTUAL | E125: OVER/UNDER
B126: Officiant | C126: 0.00 | D126: 0.00 | E126: =Expenses!$C126-Expenses!$D126 -> 0.00
B127: Church/ceremony site fee | C127: 40.00 | D127: 55.00 | E127: =Expenses!$C127-Expenses!$D127 -> (15.00)
B128: Wedding coordinator | C128: 0.00 | D128: 0.00 | E128: =Expenses!$C128-Expenses!$D128 -> 0.00
B129: Rehearsal dinner | C129: 450.00 | D129: 450.00 | E129: =Expenses!$C129-Expenses!$D129 -> 0.00
B130: Engagement party | C130: 20.00 | D130: 50.00 | E130: =Expenses!$C130-Expenses!$D130 -> (30.00)
B131: Showers | C131: 30.00 | D131: 20.00 | E131: =Expenses!$C131-Expenses!$D131 -> 10.00
B132: Salon appointments | C132: 45.00 | D132: 46.00 | E132: =Expenses!$C132-Expenses!$D132 -> (1.00)
B133: Bachelor/ette parties | C133: 0.00 | D133: 0.00 | E133: =Expenses!$C133-Expenses!$D133 -> 0.00
B134: Brunch | C134: 300.00 | D134: 400.00 | E134: =Expenses!$C134-Expenses!$D134 -> (100.00)
B135: Hotel rooms | C135: 0.00 | D135: 0.00 | E135: =Expenses!$C135-Expenses!$D135 -> 0.00
B136: Other Expenses Total | C136: =SUBTOTAL(109,OtherExpenses[ESTIMATED]) -> 885.00 | D136: =SUBTOTAL(109,OtherExpenses[ACTUAL]) -> 1,021.00 | E136: =SUBTOTAL(109,OtherExpenses[OVER/UNDER]) -> (136.00)
C138: ="Are all expenses in "&B123&" category done?" -> Are all expenses in OTHER EXPENSES category done? | E138: No

Sheet Calculations (hidden)
B2: CATEGORY | C2: ESTIMATED | D2: Actual | F2: Estimated | H2: OVER/UNDER
B3: Apparel | C3: =Apparel_Total_est -> 9,490.00 | D3: =Apparel_Total_act -> 9,770.00 | E3: =C3-F3 -> 9,480.00 | F3: =ROUNDUP($C$13/1000,0) -> 10.00 | G3: =$D$13-E3 -> 290 | H3: =D3-C3 -> 280.00
B4: Reception | C4: =Reception_Total_est -> 1,050.00 | D4: =Reception_Total_act -> 928.00 | E4: =C4-F4 -> 1,040.00 | F4: =ROUNDUP($C$13/1000,0) -> 10.00 | G4: =$D$13-E4 -> 8730 | H4: =D4-C4 -> -122.00
B5: Music | C5: =Music_Entertainment_Total_est -> 600.00 | D5: =Music_Entertainment_Total_act -> 500.00 | E5: 590.00 | F5: 10.00 | G5: 9180 | H5: -100.00
B6: Printing | C6: =Printing__Stationery_Total_est -> 935.00 | D6: =Printing__Stationery_Total_act -> 870.00 | E6: 925.00 | F6: 10.00 | G6: 8845 | H6: -65.00
B7: Photography | C7: =Photography_Total_est -> 1,625.00 | D7: =Photography_Total_act -> 1,575.00 | E7: 1,615.00 | F7: 10.00 | G7: 8155 | H7: -50.00
B8: Decorations | C8: =Decorations_Total_est -> 700.00 | D8: =Decorations_Total_act -> 720.00 | E8: 690.00 | F8: 10.00 | G8: 9080 | H8: 20.00
B9: Flowers | C9: =Flowers_Total_est -> 900.00 | D9: =Flowers_Total_act -> 850.00 | E9: 890.00 | F9: 10.00 | G9: 8880 | H9: -50.00
B10: Gifts | C10: =Gifts_Total_est -> 1,345.00 | D10: =Gifts_Total_act -> 1,075.00 | E10: 1,335.00 | F10: 10.00 | G10: 8435 | H10: -270.00
B11: Travel | C11: =Travel_Transportation_Total_est -> 100.00 | D11: =Travel_Transportation_Total_act -> 165.00 | E11: 90.00 | F11: 10.00 | G11: 9680 | H11: 65.00
B12: Other | C12: =Other_Expenses_Total_est -> 885.00 | D12: =Other_Expenses_Total_act -> 1,021.00 | E12: 875.00 | F12: 10.00 | G12: 8895 | H12: 136.00
B13: Max | C13: =MAX(C3:D12) -> 9770 | D13: =MAX(C3:D12) -> 9770 | F13: 10.00
